[Event "Titled Tuesday Blitz August 08 Early 2023"]
[White "Szente Varga, Fruzsina"]
[Black "Sadykov, Ramil"]
[WhiteFideId "712264"]
[BlackFideId "24113590"]
[WhiteElo "2289"]
[BlackElo "2602"]
[Result "0-1"]
[Round "1"]
[TimeControl "180+1"]
[Date "2023.08.08"]
[WhiteClock "0:00:08"]
[BlackClock "0:00:37"]
[Board "197"]

1. e4 {[%clk 0:03:00]}  c5 {[%clk 0:02:58]} 2. Nf3 {[%clk 0:03:00]}  e6 {[%clk 0:02:59]} 3. b3 {[%clk 0:03:00]}  Nf6 {[%clk 0:02:58]} 4. e5 {[%clk 0:03:00]}  Nd5 {[%clk 0:02:58]} 5. Bb2 {[%clk 0:03:00]}  Ne7 {[%clk 0:02:52]} 6. g3 {[%clk 0:02:57]}  Nbc6 {[%clk 0:02:49]} 7. Bg2 {[%clk 0:02:58]}  Nf5 {[%clk 0:02:41]} 8. O-O {[%clk 0:02:55]}  d6 {[%clk 0:02:41]} 9. exd6 {[%clk 0:02:45]}  Bxd6 {[%clk 0:02:41]} 10. d3 {[%clk 0:02:45]}  O-O {[%clk 0:02:38]} 11. Nbd2 {[%clk 0:02:44]}  e5 {[%clk 0:02:37]} 12. Nc4 {[%clk 0:02:35]}  Re8 {[%clk 0:02:26]} 13. Re1 {[%clk 0:02:25]}  f6 {[%clk 0:02:23]} 14. Nfd2 {[%clk 0:01:54]}  Nfd4 {[%clk 0:02:19]} 15. Nxd6 {[%clk 0:01:25]}  Qxd6 {[%clk 0:02:17]} 16. Ne4 {[%clk 0:01:26]}  Qf8 {[%clk 0:02:10]} 17. Ba3 {[%clk 0:01:26]}  b6 {[%clk 0:01:46]} 18. c3 {[%clk 0:01:12]}  Nb5 {[%clk 0:01:45]} 19. Bb2 {[%clk 0:01:12]}  Bb7 {[%clk 0:01:45]} 20. a4 {[%clk 0:00:57]}  Nd6 {[%clk 0:01:44]} 21. Qh5 {[%clk 0:00:47]}  Rad8 {[%clk 0:01:37]} 22. Nxd6 {[%clk 0:00:36]}  Qxd6 {[%clk 0:01:34]} 23. Be4 {[%clk 0:00:35]}  g6 {[%clk 0:01:25]} 24. Bxg6 {[%clk 0:00:19]}  hxg6 {[%clk 0:01:26]} 25. Qxg6+ {[%clk 0:00:20]}  Kf8 {[%clk 0:01:26]} 26. Qh6+ {[%clk 0:00:21]}  Kf7 {[%clk 0:01:17]} 27. Qh7+ {[%clk 0:00:21]}  Ke6 {[%clk 0:01:15]} 28. Qh3+ {[%clk 0:00:21]}  f5 {[%clk 0:01:12]} 29. Qh6+ {[%clk 0:00:21]}  Kd7 {[%clk 0:01:12]} 30. Qh7+ {[%clk 0:00:19]}  Re7 {[%clk 0:01:11]} 31. Qxf5+ {[%clk 0:00:19]}  Kc7 {[%clk 0:01:10]} 32. d4 {[%clk 0:00:18]}  exd4 {[%clk 0:01:01]} 33. cxd4 {[%clk 0:00:19]}  Nxd4 {[%clk 0:01:01]} 34. Bxd4 {[%clk 0:00:19]}  Rxe1+ {[%clk 0:00:50]} 35. Rxe1 {[%clk 0:00:20]}  cxd4 {[%clk 0:00:48]} 36. Rc1+ {[%clk 0:00:18]}  Kb8 {[%clk 0:00:47]} 37. h4 {[%clk 0:00:19]}  d3 {[%clk 0:00:40]} 38. Rd1 {[%clk 0:00:19]}  d2 {[%clk 0:00:40]} 39. h5 {[%clk 0:00:18]}  Qc6 {[%clk 0:00:38]} 40. Qf4+ {[%clk 0:00:14]}  Ka8 {[%clk 0:00:38]} 41. f3 {[%clk 0:00:14]}  Qxf3 {[%clk 0:00:36]} 42. Qxf3 {[%clk 0:00:08]}  Bxf3 {[%clk 0:00:37]} 0-1


[Site "https://www.chess.com"]

[Event "Titled Tuesday Blitz August 08 Early 2023"]
[White "Erzhanov, Arman"]
[Black "Konenkin, Dmitry"]
[WhiteFideId "4138821"]
[BlackFideId "4185781"]
[WhiteElo "2600"]
[BlackElo "2285"]
[Result "1-0"]
[Round "1"]
[TimeControl "180+1"]
[Date "2023.08.08"]
[WhiteClock "0:01:25"]
[BlackClock "0:00:15"]
[Board "198"]

1. e4 {[%clk 0:02:59]}  d6 {[%clk 0:02:55]} 2. d4 {[%clk 0:02:58]}  Nf6 {[%clk 0:02:56]} 3. Nc3 {[%clk 0:02:59]}  e5 {[%clk 0:02:56]} 4. Nge2 {[%clk 0:02:58]}  Be7 {[%clk 0:02:55]} 5. h3 {[%clk 0:02:59]}  O-O {[%clk 0:02:54]} 6. g4 {[%clk 0:02:59]}  c6 {[%clk 0:02:53]} 7. Bg2 {[%clk 0:03:00]}  b5 {[%clk 0:02:52]} 8. a3 {[%clk 0:03:00]}  a5 {[%clk 0:02:52]} 9. O-O {[%clk 0:03:00]}  Ba6 {[%clk 0:02:53]} 10. Re1 {[%clk 0:02:59]}  b4 {[%clk 0:02:53]} 11. axb4 {[%clk 0:02:59]}  axb4 {[%clk 0:02:54]} 12. Na4 {[%clk 0:02:51]}  Nbd7 {[%clk 0:02:46]} 13. b3 {[%clk 0:02:50]}  Bb5 {[%clk 0:02:26]} 14. Be3 {[%clk 0:02:43]}  Re8 {[%clk 0:02:04]} 15. Qd2 {[%clk 0:02:35]}  Bxa4 {[%clk 0:01:53]} 16. bxa4 {[%clk 0:02:34]}  Nb6 {[%clk 0:01:53]} 17. Qxb4 {[%clk 0:02:18]}  d5 {[%clk 0:01:53]} 18. Qb3 {[%clk 0:02:16]}  Nc4 {[%clk 0:01:38]} 19. dxe5 {[%clk 0:02:14]}  Nxe5 {[%clk 0:01:32]} 20. exd5 {[%clk 0:02:12]}  Nxd5 {[%clk 0:01:30]} 21. Red1 {[%clk 0:02:08]}  Rb8 {[%clk 0:01:16]} 22. Bxd5 {[%clk 0:01:57]}  Rxb3 {[%clk 0:01:00]} 23. Bxf7+ {[%clk 0:01:55]}  Kxf7 {[%clk 0:01:01]} 24. Rxd8 {[%clk 0:01:56]}  Rxd8 {[%clk 0:00:59]} 25. cxb3 {[%clk 0:01:56]}  Rb8 {[%clk 0:00:51]} 26. Nd4 {[%clk 0:01:52]}  Bc5 {[%clk 0:00:44]} 27. Nxc6 {[%clk 0:01:50]}  Nxc6 {[%clk 0:00:42]} 28. Bxc5 {[%clk 0:01:50]}  Rxb3 {[%clk 0:00:43]} 29. a5 {[%clk 0:01:50]}  Rb5 {[%clk 0:00:38]} 30. Bb6 {[%clk 0:01:50]}  Ke6 {[%clk 0:00:26]} 31. Kg2 {[%clk 0:01:50]}  Kd7 {[%clk 0:00:26]} 32. h4 {[%clk 0:01:43]}  Kc8 {[%clk 0:00:26]} 33. h5 {[%clk 0:01:36]}  Kb7 {[%clk 0:00:26]} 34. f4 {[%clk 0:01:35]}  Ka6 {[%clk 0:00:26]} 35. g5 {[%clk 0:01:34]}  Rb3 {[%clk 0:00:23]} 36. Ra4 {[%clk 0:01:32]}  Nb4 {[%clk 0:00:21]} 37. f5 {[%clk 0:01:28]}  Nd5 {[%clk 0:00:20]} 38. Rd4 {[%clk 0:01:26]}  Ne3+ {[%clk 0:00:17]} 39. Kf2 {[%clk 0:01:25]}  Nxf5 {[%clk 0:00:18]} 40. Rd7 {[%clk 0:01:25]}  Rb5 {[%clk 0:00:15]} 41. Ra7# {[%clk 0:01:25]} 1-0


[Site "https://www.chess.com"]

[Event "Titled Tuesday Blitz August 08 Early 2023"]
[White "GAO"]
[Black "Subelj, Jan"]
[BlackFideId "14618583"]
[WhiteElo "2285"]
[BlackElo "2600"]
[Result "0-1"]
[Round "1"]
[TimeControl "180+1"]
[Date "2023.08.08"]
[WhiteClock "0:00:27"]
[BlackClock "0:00:33"]
[Board "199"]

1. Nf3 {[%clk 0:02:59]}  b6 {[%clk 0:03:00]} 2. e4 {[%clk 0:02:57]}  Bb7 {[%clk 0:03:01]} 3. Nc3 {[%clk 0:02:57]}  c5 {[%clk 0:03:00]} 4. d4 {[%clk 0:02:57]}  cxd4 {[%clk 0:03:00]} 5. Nxd4 {[%clk 0:02:57]}  e5 {[%clk 0:02:59]} 6. Nf5 {[%clk 0:02:55]}  Nf6 {[%clk 0:02:57]} 7. Bg5 {[%clk 0:02:41]}  a6 {[%clk 0:02:33]} 8. a4 {[%clk 0:02:38]}  h6 {[%clk 0:02:31]} 9. Bxf6 {[%clk 0:02:37]}  Qxf6 {[%clk 0:02:32]} 10. Bc4 {[%clk 0:02:38]}  Bb4 {[%clk 0:02:29]} 11. Qd3 {[%clk 0:02:35]}  O-O {[%clk 0:02:24]} 12. O-O {[%clk 0:02:32]}  Bxc3 {[%clk 0:02:11]} 13. bxc3 {[%clk 0:02:31]}  Nc6 {[%clk 0:02:07]} 14. Qxd7 {[%clk 0:02:14]}  Na5 {[%clk 0:01:48]} 15. Bd5 {[%clk 0:01:49]}  Rfd8 {[%clk 0:01:44]} 16. Qc7 {[%clk 0:01:49]}  Bxd5 {[%clk 0:01:44]} 17. Ne7+ {[%clk 0:01:49]}  Kf8 {[%clk 0:01:33]} 18. Nxd5 {[%clk 0:01:49]}  Qd6 {[%clk 0:01:32]} 19. Qxb6 {[%clk 0:01:29]}  Qxb6 {[%clk 0:01:29]} 20. Nxb6 {[%clk 0:01:30]}  Rab8 {[%clk 0:01:29]} 21. Rab1 {[%clk 0:01:29]}  Ke8 {[%clk 0:01:20]} 22. Nd5 {[%clk 0:01:26]}  Rxb1 {[%clk 0:01:19]} 23. Rxb1 {[%clk 0:01:27]}  Rc8 {[%clk 0:01:19]} 24. Kf1 {[%clk 0:01:22]}  Nc4 {[%clk 0:01:16]} 25. Ke2 {[%clk 0:01:18]}  Rc5 {[%clk 0:01:10]} 26. Rb7 {[%clk 0:01:15]}  Ra5 {[%clk 0:01:05]} 27. Re7+ {[%clk 0:01:03]}  Kf8 {[%clk 0:01:05]} 28. Rc7 {[%clk 0:01:02]}  Nd6 {[%clk 0:01:05]} 29. Rd7 {[%clk 0:01:01]}  Ne8 {[%clk 0:00:56]} 30. Rd8 {[%clk 0:00:55]}  Rxa4 {[%clk 0:00:39]} 31. Nc7 {[%clk 0:00:54]}  Ke7 {[%clk 0:00:39]} 32. Rxe8+ {[%clk 0:00:50]}  Kd7 {[%clk 0:00:39]} 33. Rxe5 {[%clk 0:00:50]}  Kxc7 {[%clk 0:00:39]} 34. Re7+ {[%clk 0:00:50]}  Kd6 {[%clk 0:00:38]} 35. Rxf7 {[%clk 0:00:50]}  Rxe4+ {[%clk 0:00:38]} 36. Kd3 {[%clk 0:00:50]}  Rg4 {[%clk 0:00:39]} 37. g3 {[%clk 0:00:51]}  Kc5 {[%clk 0:00:36]} 38. h3 {[%clk 0:00:46]}  Rg6 {[%clk 0:00:35]} 39. c4 {[%clk 0:00:44]}  Rd6+ {[%clk 0:00:35]} 40. Kc3 {[%clk 0:00:44]}  g6 {[%clk 0:00:34]} 41. Rc7+ {[%clk 0:00:43]}  Kb6 {[%clk 0:00:34]} 42. c5+ {[%clk 0:00:40]}  Kxc7 {[%clk 0:00:34]} 43. cxd6+ {[%clk 0:00:41]}  Kxd6 {[%clk 0:00:34]} 44. Kb4 {[%clk 0:00:40]}  Kc6 {[%clk 0:00:35]} 45. c4 {[%clk 0:00:37]}  Kb6 {[%clk 0:00:35]} 46. c5+ {[%clk 0:00:37]}  Kc6 {[%clk 0:00:35]} 47. Kc4 {[%clk 0:00:38]}  a5 {[%clk 0:00:35]} 48. f4 {[%clk 0:00:38]}  a4 {[%clk 0:00:34]} 49. Kb4 {[%clk 0:00:36]}  a3 {[%clk 0:00:34]} 50. Kxa3 {[%clk 0:00:36]}  Kxc5 {[%clk 0:00:35]} 51. Kb3 {[%clk 0:00:37]}  Kd4 {[%clk 0:00:35]} 52. Kc2 {[%clk 0:00:37]}  Ke4 {[%clk 0:00:36]} 53. h4 {[%clk 0:00:30]}  h5 {[%clk 0:00:34]} 54. Kd2 {[%clk 0:00:30]}  Kf3 {[%clk 0:00:34]} 55. Kd3 {[%clk 0:00:26]}  Kxg3 {[%clk 0:00:33]} 56. Ke4 {[%clk 0:00:26]}  Kxh4 {[%clk 0:00:33]} 57. Kf3 {[%clk 0:00:26]}  Kh3 {[%clk 0:00:33]} 58. Kf2 {[%clk 0:00:26]}  Kg4 {[%clk 0:00:33]} 59. Kg2 {[%clk 0:00:26]}  Kxf4 {[%clk 0:00:32]} 60. Kh3 {[%clk 0:00:27]}  g5 {[%clk 0:00:32]} 61. Kg2 {[%clk 0:00:27]}  g4 {[%clk 0:00:32]} 62. Kh2 {[%clk 0:00:27]}  h4 {[%clk 0:00:32]} 63. Kg2 {[%clk 0:00:27]}  h3+ {[%clk 0:00:33]} 0-1


[Site "https://www.chess.com"]

[Event "Titled Tuesday Blitz August 08 Early 2023"]
[White "Zarnicki, Pablo"]
[Black "Jahnz, Fabian"]
[WhiteFideId "100137"]
[BlackFideId "4653300"]
[WhiteElo "2598"]
[BlackElo "2282"]
[Result "1-0"]
[Round "1"]
[TimeControl "180+1"]
[Date "2023.08.08"]
[WhiteClock "0:02:00"]
[BlackClock "0:02:08"]
[Board "200"]

1. e4 {[%clk 0:02:50]}  c6 {[%clk 0:02:59]} 2. d4 {[%clk 0:02:49]}  d5 {[%clk 0:03:00]} 3. Nc3 {[%clk 0:02:49]}  dxe4 {[%clk 0:03:00]} 4. Nxe4 {[%clk 0:02:50]}  Nf6 {[%clk 0:03:00]} 5. Nxf6+ {[%clk 0:02:51]}  exf6 {[%clk 0:03:01]} 6. Bc4 {[%clk 0:02:51]}  Bd6 {[%clk 0:03:02]} 7. Qe2+ {[%clk 0:02:51]}  Qe7 {[%clk 0:03:02]} 8. Qxe7+ {[%clk 0:02:51]}  Kxe7 {[%clk 0:03:02]} 9. Ne2 {[%clk 0:02:50]}  Re8 {[%clk 0:03:02]} 10. O-O {[%clk 0:02:46]}  Be6 {[%clk 0:03:03]} 11. Bb3 {[%clk 0:02:44]}  Bxb3 {[%clk 0:03:00]} 12. axb3 {[%clk 0:02:44]}  Nd7 {[%clk 0:02:59]} 13. Bf4 {[%clk 0:02:44]}  Bxf4 {[%clk 0:02:59]} 14. Nxf4 {[%clk 0:02:45]}  Kf8 {[%clk 0:03:00]} 15. g3 {[%clk 0:02:37]}  Nb6 {[%clk 0:02:54]} 16. Rfe1 {[%clk 0:02:35]}  Rxe1+ {[%clk 0:02:52]} 17. Rxe1 {[%clk 0:02:34]}  Re8 {[%clk 0:02:52]} 18. Rxe8+ {[%clk 0:02:34]}  Kxe8 {[%clk 0:02:53]} 19. c4 {[%clk 0:02:34]}  Ke7 {[%clk 0:02:52]} 20. f3 {[%clk 0:02:30]}  a5 {[%clk 0:02:51]} 21. Kf2 {[%clk 0:02:23]}  a4 {[%clk 0:02:51]} 22. c5 {[%clk 0:02:22]}  g5 {[%clk 0:02:15]} 23. cxb6 {[%clk 0:02:08]}  gxf4 {[%clk 0:02:12]} 24. bxa4 {[%clk 0:02:08]}  fxg3+ {[%clk 0:02:12]} 25. hxg3 {[%clk 0:02:09]}  Kd6 {[%clk 0:02:12]} 26. b4 {[%clk 0:02:04]}  Kd5 {[%clk 0:02:08]} 27. a5 {[%clk 0:02:00]} 1-0


[Site "https://www.chess.com"]

[Event "Titled Tuesday Blitz August 08 Early 2023"]
[White "Sariego Figueredo, Wilfredo"]
[Black "Goldin, Alexander"]
[WhiteFideId "3500080"]
[BlackFideId "2019540"]
[WhiteElo "2270"]
[BlackElo "2597"]
[Result "0-1"]
[Round "1"]
[TimeControl "180+1"]
[Date "2023.08.08"]
[WhiteClock "0:00:07"]
[BlackClock "0:00:15"]
[Board "201"]

1. d4 {[%clk 0:02:59]}  Nf6 {[%clk 0:02:59]} 2. Bf4 {[%clk 0:02:59]}  d6 {[%clk 0:02:58]} 3. Nc3 {[%clk 0:03:00]}  Nbd7 {[%clk 0:02:56]} 4. Nf3 {[%clk 0:02:59]}  c5 {[%clk 0:02:55]} 5. d5 {[%clk 0:02:57]}  g6 {[%clk 0:02:54]} 6. e4 {[%clk 0:02:57]}  Bg7 {[%clk 0:02:54]} 7. Be2 {[%clk 0:02:54]}  Nh5 {[%clk 0:02:45]} 8. Bd2 {[%clk 0:02:52]}  O-O {[%clk 0:02:44]} 9. O-O {[%clk 0:02:50]}  a6 {[%clk 0:02:43]} 10. a4 {[%clk 0:02:49]}  Rb8 {[%clk 0:02:43]} 11. a5 {[%clk 0:02:48]}  h6 {[%clk 0:02:27]} 12. Re1 {[%clk 0:02:47]}  Kh7 {[%clk 0:02:26]} 13. Kh1 {[%clk 0:02:37]}  Qc7 {[%clk 0:02:22]} 14. Ng1 {[%clk 0:02:35]}  Nhf6 {[%clk 0:02:21]} 15. f4 {[%clk 0:02:34]}  c4 {[%clk 0:02:15]} 16. Be3 {[%clk 0:02:30]}  Nc5 {[%clk 0:01:55]} 17. Bf3 {[%clk 0:02:14]}  b5 {[%clk 0:01:55]} 18. axb6 {[%clk 0:02:11]}  Rxb6 {[%clk 0:01:56]} 19. Bxc5 {[%clk 0:02:10]}  dxc5 {[%clk 0:01:43]} 20. e5 {[%clk 0:02:10]}  Ne8 {[%clk 0:01:38]} 21. Na4 {[%clk 0:01:54]}  Rb8 {[%clk 0:01:14]} 22. Be2 {[%clk 0:01:53]}  f6 {[%clk 0:01:13]} 23. Bxc4 {[%clk 0:01:47]}  fxe5 {[%clk 0:01:13]} 24. fxe5 {[%clk 0:01:46]}  Bxe5 {[%clk 0:01:13]} 25. c3 {[%clk 0:01:45]}  Bxh2 {[%clk 0:01:07]} 26. Nf3 {[%clk 0:01:45]}  Bg3 {[%clk 0:01:06]} 27. Re2 {[%clk 0:01:40]}  Nf6 {[%clk 0:01:03]} 28. Qc2 {[%clk 0:01:26]}  Bf5 {[%clk 0:01:02]} 29. Bd3 {[%clk 0:01:24]}  Nxd5 {[%clk 0:01:00]} 30. Bxf5 {[%clk 0:01:23]}  Rxf5 {[%clk 0:00:59]} 31. Qe4 {[%clk 0:01:17]}  Bd6 {[%clk 0:00:48]} 32. g4 {[%clk 0:01:11]}  Nf6 {[%clk 0:00:45]} 33. Qc4 {[%clk 0:01:05]}  Rf4 {[%clk 0:00:44]} 34. Qd3 {[%clk 0:01:02]}  Rxg4 {[%clk 0:00:43]} 35. Rae1 {[%clk 0:01:00]}  Rf8 {[%clk 0:00:42]} 36. Ne5 {[%clk 0:00:57]}  Rg5 {[%clk 0:00:33]} 37. Nc4 {[%clk 0:00:52]}  Rf7 {[%clk 0:00:30]} 38. Nxd6 {[%clk 0:00:50]}  exd6 {[%clk 0:00:30]} 39. Qxa6 {[%clk 0:00:45]}  Nh5 {[%clk 0:00:30]} 40. Re6 {[%clk 0:00:36]}  Ng3+ {[%clk 0:00:24]} 41. Kh2 {[%clk 0:00:36]}  Nf5 {[%clk 0:00:23]} 42. Qb6 {[%clk 0:00:31]}  Qd7 {[%clk 0:00:21]} 43. b3 {[%clk 0:00:23]}  Rh5+ {[%clk 0:00:19]} 44. Kg1 {[%clk 0:00:20]}  Nh4 {[%clk 0:00:19]} 45. R1e3 {[%clk 0:00:17]}  Nf3+ {[%clk 0:00:18]} 46. Kg2 {[%clk 0:00:17]}  Ng5 {[%clk 0:00:17]} 47. c4 {[%clk 0:00:15]}  Nxe6 {[%clk 0:00:16]} 48. Nc3 {[%clk 0:00:14]}  Nf4+ {[%clk 0:00:16]} 49. Kg1 {[%clk 0:00:14]}  Qg4+ {[%clk 0:00:16]} 50. Kf1 {[%clk 0:00:14]}  Nd3+ {[%clk 0:00:16]} 51. Rf3 {[%clk 0:00:09]}  Qxf3+ {[%clk 0:00:15]} 52. Kg1 {[%clk 0:00:07]}  Qf2# {[%clk 0:00:15]} 0-1


[Site "https://www.chess.com"]

[Event "Titled Tuesday Blitz August 08 Early 2023"]
[White "Andreev, Konstantin"]
[Black "Garrido, Denis"]
[WhiteFideId "24239305"]
[BlackFideId "601217"]
[WhiteElo "2593"]
[BlackElo "2267"]
[Result "1-0"]
[Round "1"]
[TimeControl "180+1"]
[Date "2023.08.08"]
[WhiteClock "0:01:06"]
[BlackClock "0:00:02"]
[Board "202"]

1. e4 {[%clk 0:03:00]}  e5 {[%clk 0:02:58]} 2. Nf3 {[%clk 0:02:59]}  Nc6 {[%clk 0:02:59]} 3. Bc4 {[%clk 0:03:00]}  Nf6 {[%clk 0:02:59]} 4. d3 {[%clk 0:02:59]}  Bc5 {[%clk 0:02:59]} 5. c3 {[%clk 0:02:58]}  a5 {[%clk 0:02:58]} 6. Bb3 {[%clk 0:02:57]}  d6 {[%clk 0:02:57]} 7. a4 {[%clk 0:02:57]}  O-O {[%clk 0:02:57]} 8. O-O {[%clk 0:02:57]}  Ba7 {[%clk 0:02:53]} 9. Bc2 {[%clk 0:02:56]}  h6 {[%clk 0:02:45]} 10. h3 {[%clk 0:02:56]}  Ne7 {[%clk 0:02:25]} 11. Nbd2 {[%clk 0:02:55]}  Ng6 {[%clk 0:02:25]} 12. Re1 {[%clk 0:02:56]}  c6 {[%clk 0:02:24]} 13. Nf1 {[%clk 0:02:56]}  Re8 {[%clk 0:02:23]} 14. Ng3 {[%clk 0:02:56]}  d5 {[%clk 0:02:23]} 15. exd5 {[%clk 0:02:55]}  Nxd5 {[%clk 0:02:21]} 16. d4 {[%clk 0:02:33]}  exd4 {[%clk 0:02:18]} 17. Rxe8+ {[%clk 0:02:32]}  Qxe8 {[%clk 0:02:19]} 18. Bxg6 {[%clk 0:02:31]}  fxg6 {[%clk 0:02:19]} 19. Nxd4 {[%clk 0:02:32]}  Qf7 {[%clk 0:02:14]} 20. Qd3 {[%clk 0:02:13]}  Bd7 {[%clk 0:02:05]} 21. Bd2 {[%clk 0:02:13]}  Rf8 {[%clk 0:02:04]} 22. Ne4 {[%clk 0:02:08]}  Bf5 {[%clk 0:01:58]} 23. Nxf5 {[%clk 0:02:04]}  Qxf5 {[%clk 0:01:41]} 24. Rf1 {[%clk 0:02:00]}  g5 {[%clk 0:01:39]} 25. Kh1 {[%clk 0:01:56]}  g4 {[%clk 0:01:34]} 26. h4 {[%clk 0:01:42]}  g3 {[%clk 0:00:59]} 27. c4 {[%clk 0:01:35]}  Nf4 {[%clk 0:00:27]} 28. Bxf4 {[%clk 0:01:22]}  Qxf4 {[%clk 0:00:27]} 29. Nxg3 {[%clk 0:01:23]}  Qxh4+ {[%clk 0:00:27]} 30. Kg1 {[%clk 0:01:22]}  Bd4 {[%clk 0:00:18]} 31. Nf5 {[%clk 0:01:18]}  Qh5 {[%clk 0:00:04]} 32. Nxd4 {[%clk 0:01:13]}  Rf4 {[%clk 0:00:05]} 33. Ne6 {[%clk 0:01:09]}  Rh4 {[%clk 0:00:04]} 34. Qd8+ {[%clk 0:01:06]}  Kh7 {[%clk 0:00:03]} 35. Nf8+ {[%clk 0:01:05]}  Kg8 {[%clk 0:00:03]} 36. Ng6+ {[%clk 0:01:05]}  Kh7 {[%clk 0:00:02]} 37. Nxh4 {[%clk 0:01:06]} 1-0


[Site "https://www.chess.com"]

[Event "Titled Tuesday Blitz August 08 Early 2023"]
[White "Player, Edmund C"]
[Black "Aslanov, Umid"]
[WhiteFideId "406520"]
[BlackFideId "13412620"]
[WhiteElo "2263"]
[BlackElo "2589"]
[Result "0-1"]
[Round "1"]
[TimeControl "180+1"]
[Date "2023.08.08"]
[WhiteClock "0:00:03"]
[BlackClock "0:01:26"]
[Board "205"]

1. e4 {[%clk 0:02:59]}  c5 {[%clk 0:02:59]} 2. Nf3 {[%clk 0:02:59]}  d6 {[%clk 0:02:59]} 3. d4 {[%clk 0:02:58]}  cxd4 {[%clk 0:03:00]} 4. Nxd4 {[%clk 0:02:58]}  Nf6 {[%clk 0:03:01]} 5. Nc3 {[%clk 0:02:58]}  a6 {[%clk 0:03:02]} 6. h3 {[%clk 0:02:58]}  e6 {[%clk 0:03:01]} 7. g4 {[%clk 0:02:58]}  Be7 {[%clk 0:03:02]} 8. Bg2 {[%clk 0:02:58]}  Nfd7 {[%clk 0:03:03]} 9. f4 {[%clk 0:02:47]}  Bh4+ {[%clk 0:03:02]} 10. Kf1 {[%clk 0:02:47]}  Bf6 {[%clk 0:03:00]} 11. Be3 {[%clk 0:02:46]}  O-O {[%clk 0:03:00]} 12. g5 {[%clk 0:02:44]}  Be7 {[%clk 0:02:57]} 13. h4 {[%clk 0:02:44]}  Nc6 {[%clk 0:02:56]} 14. h5 {[%clk 0:02:39]}  Nxd4 {[%clk 0:02:54]} 15. Bxd4 {[%clk 0:02:27]}  e5 {[%clk 0:02:54]} 16. Bf2 {[%clk 0:02:23]}  exf4 {[%clk 0:02:40]} 17. g6 {[%clk 0:02:11]}  Ne5 {[%clk 0:02:38]} 18. gxh7+ {[%clk 0:01:47]}  Kh8 {[%clk 0:02:38]} 19. Nd5 {[%clk 0:01:36]}  Bg4 {[%clk 0:02:30]} 20. Qd4 {[%clk 0:01:18]}  Bg5 {[%clk 0:02:21]} 21. Bh3 {[%clk 0:00:26]}  Qd7 {[%clk 0:02:15]} 22. Nb6 {[%clk 0:00:25]}  Qb5+ {[%clk 0:02:07]} 23. c4 {[%clk 0:00:22]}  Qc6 {[%clk 0:02:06]} 24. h6 {[%clk 0:00:16]}  Bf6 {[%clk 0:01:59]} 25. hxg7+ {[%clk 0:00:14]}  Bxg7 {[%clk 0:02:00]} 26. Rg1 {[%clk 0:00:10]}  Nf3 {[%clk 0:01:58]} 27. Qd3 {[%clk 0:00:08]}  Bxh3+ {[%clk 0:01:55]} 28. Ke2 {[%clk 0:00:08]}  Nxg1+ {[%clk 0:01:53]} 29. Rxg1 {[%clk 0:00:09]}  Rae8 {[%clk 0:01:48]} 30. Qxh3 {[%clk 0:00:07]}  Qxe4+ {[%clk 0:01:48]} 31. Kf1 {[%clk 0:00:07]}  Qe2+ {[%clk 0:01:46]} 32. Kg2 {[%clk 0:00:07]}  Bd4 {[%clk 0:01:46]} 33. Kh1 {[%clk 0:00:05]}  Qxf2 {[%clk 0:01:39]} 34. Qg4 {[%clk 0:00:05]}  Qe2 {[%clk 0:01:31]} 35. Qg5 {[%clk 0:00:04]}  Qe4+ {[%clk 0:01:30]} 36. Rg2 {[%clk 0:00:04]}  Qxh7+ {[%clk 0:01:24]} 37. Rh2 {[%clk 0:00:04]}  Re1+ {[%clk 0:01:25]} 38. Kg2 {[%clk 0:00:04]}  Rg1+ {[%clk 0:01:25]} 39. Kf3 {[%clk 0:00:04]}  Rxg5 {[%clk 0:01:26]} 40. Rxh7+ {[%clk 0:00:05]}  Kxh7 {[%clk 0:01:27]} 41. Nd5 {[%clk 0:00:05]}  Kg6 {[%clk 0:01:26]} 42. Kxf4 {[%clk 0:00:03]}  Rxd5 {[%clk 0:01:26]} 0-1


[Site "https://www.chess.com"]

[Event "Titled Tuesday Blitz August 08 Early 2023"]
[White "Vlassov, Nikolai"]
[Black "Ruge, Edison"]
[WhiteFideId "4103360"]
[BlackFideId "4401000"]
[WhiteElo "2587"]
[BlackElo "2261"]
[Result "1-0"]
[Round "1"]
[TimeControl "180+1"]
[Date "2023.08.08"]
[WhiteClock "0:01:02"]
[BlackClock "0:00:28"]
[Board "206"]

1. e4 {[%clk 0:02:51]}  e5 {[%clk 0:03:00]} 2. Bc4 {[%clk 0:02:50]}  Nc6 {[%clk 0:03:00]} 3. f4 {[%clk 0:02:50]}  Bc5 {[%clk 0:02:57]} 4. Nf3 {[%clk 0:02:50]}  d6 {[%clk 0:02:56]} 5. Nc3 {[%clk 0:02:49]}  Nf6 {[%clk 0:02:56]} 6. f5 {[%clk 0:02:48]}  a6 {[%clk 0:02:52]} 7. d3 {[%clk 0:02:48]}  b5 {[%clk 0:02:50]} 8. Bb3 {[%clk 0:02:48]}  Na5 {[%clk 0:02:50]} 9. Bg5 {[%clk 0:02:47]}  h6 {[%clk 0:02:46]} 10. Bh4 {[%clk 0:02:47]}  Nxb3 {[%clk 0:02:46]} 11. axb3 {[%clk 0:02:46]}  c6 {[%clk 0:02:37]} 12. Qe2 {[%clk 0:02:44]}  g5 {[%clk 0:02:36]} 13. fxg6 {[%clk 0:02:43]}  fxg6 {[%clk 0:02:36]} 14. Bf2 {[%clk 0:02:38]}  Qb6 {[%clk 0:02:29]} 15. O-O {[%clk 0:02:15]}  Bxf2+ {[%clk 0:02:26]} 16. Qxf2 {[%clk 0:02:14]}  Qxf2+ {[%clk 0:02:26]} 17. Rxf2 {[%clk 0:02:15]}  O-O {[%clk 0:02:25]} 18. Nh4 {[%clk 0:01:59]}  Kg7 {[%clk 0:02:23]} 19. Raf1 {[%clk 0:01:58]}  Be6 {[%clk 0:02:19]} 20. h3 {[%clk 0:01:57]}  Nd7 {[%clk 0:02:15]} 21. Nf3 {[%clk 0:01:47]}  Nf6 {[%clk 0:02:08]} 22. Ne2 {[%clk 0:01:40]}  Nh5 {[%clk 0:02:07]} 23. d4 {[%clk 0:01:29]}  Nf4 {[%clk 0:01:56]} 24. dxe5 {[%clk 0:01:24]}  Nxe2+ {[%clk 0:01:55]} 25. Rxe2 {[%clk 0:01:22]}  dxe5 {[%clk 0:01:51]} 26. Nxe5 {[%clk 0:01:22]}  Rxf1+ {[%clk 0:01:51]} 27. Kxf1 {[%clk 0:01:22]}  c5 {[%clk 0:01:50]} 28. Rd2 {[%clk 0:01:18]}  Kf6 {[%clk 0:01:49]} 29. Nf3 {[%clk 0:01:16]}  Ke7 {[%clk 0:01:49]} 30. Kf2 {[%clk 0:01:12]}  a5 {[%clk 0:01:48]} 31. Ke3 {[%clk 0:01:12]}  a4 {[%clk 0:01:48]} 32. bxa4 {[%clk 0:01:11]}  Rxa4 {[%clk 0:01:48]} 33. Ne5 {[%clk 0:01:11]}  g5 {[%clk 0:01:45]} 34. Nc6+ {[%clk 0:01:06]}  Kf6 {[%clk 0:01:35]} 35. Rd6 {[%clk 0:01:05]}  Ra6 {[%clk 0:00:28]} 36. e5+ {[%clk 0:01:02]} 1-0


[Site "https://www.chess.com"]